bitfinex-derivatives/quotes_SOLF0:USTF0_20241008
["timestamp","ask_amount","ask_price","bid_price","bid_amount"]
[1728369020735,3.61732,143.21,143.19,10.74]
[1728369021939,0.12502,143.27,143.2,15.7]
[1728369022233,0.12502,143.27,143.26,10.74]
[1728369023235,0.12502,143.33,143.26,10.74]
[1728369023428,0.12502,143.33,143.3,10.74]
[1728369023629,3.4896,143.32,143.29,10.74]
[1728369024328,10.74,143.32,143.27,10.74]
[1728369024527,0.12502,143.33,143.27,4.96]
[1728369024926,3.4899,143.31,143.27,8.4506]
[1728369025435,3.4896,143.32,143.27,8.4506]
[1728369027528,3.4901,143.3,143.27,4.96]
[1728369028231,3.4898,143.31,143.27,4.96]
[1728369029141,3.4898,143.31,143.27,8.4507]
[1728369029439,3.49,143.3,143.27,4.96]
[1728369029641,3.49,143.3,143.26,4.96]
[1728369030530,3.49,143.3,143.26,8.4509]
[1728369031337,0.12502,143.33,143.26,4.96]
[1728369031539,3.4899,143.31,143.27,3.4907]
[1728369033141,0.12502,143.33,143.27,3.4907]
[1728369033838,3.49,143.31,143.27,3.4907]
[1728369034048,0.12502,143.33,143.27,3.4907]
[1728369035140,3.4897,143.32,143.27,3.4907]
[1728369035441,0.12502,143.33,143.27,3.4907]
[1728369035945,3.49,143.3,143.27,3.4907]
[1728369037138,3.49,143.3,143.26,8.4508]
[1728369037533,0.12502,143.33,143.25,20.28536266]
[1728369037844,3.4904,143.29,143.26,4.96]
[1728369039546,3.4904,143.29,143.26,8.4509]
[1728369040845,3.4904,143.29,143.26,3.4909]
[1728369041943,3.4904,143.29,143.25,21.7]
[1728369042141,16.74,143.32,143.25,4.96]
[1728369042342,16.74,143.31,143.23,3.47498136]
[1728369042537,16.74,143.31,143.24,4.96]
[1728369042538,2.655,143.3,143.24,4.96]
[1728369042734,3.4909,143.27,143.24,4.96]
[1728369042933,3.4909,143.27,143.23,3.4916]
[1728369043134,2.655,143.3,143.23,4.96]
[1728369043539,3.491,143.26,143.23,4.96]
[1728369045548,3.491,143.26,143.23,8.4517]
[1728369045948,4.0266,143.3,143.23,21.7]
[1728369046141,3.4908,143.27,143.24,3.4914]
[1728369046541,3.4908,143.27,143.25,10.72]
[1728369047149,3.4905,143.29,143.26,10.72]
[1728369048353,3.4905,143.29,143.24,3.4913]
[1728369048650,1.3381,143.3,143.26,10.72]
[1728369049354,3.4904,143.29,143.26,10.72]
[1728369052755,1.3381,143.3,143.27,10.72]
[1728369054453,3.4904,143.29,143.27,10.72]
[1728369063164,3.4904,143.29,143.26,14.2108]
[1728369063363,3.4906,143.28,143.25,8.4511]
[1728369063564,10.72,143.29,143.24,5.0]
[1728369063764,10.72,143.28,143.23,10.72]
[1728369064065,3.4909,143.27,143.23,19.2115]
[1728369064263,3.4909,143.27,143.24,10.72]
[1728369064958,3.491,143.26,143.23,5.0]
[1728369065262,3.491,143.26,143.24,10.72]
[1728369067065,10.72,143.29,143.25,10.72]
[1728369067958,3.4909,143.27,143.25,10.72]
[1728369071166,4.8283,143.3,143.26,14.2108]
[1728369071469,1.3381,143.3,143.26,14.2108]
[1728369071767,1.3381,143.3,143.26,10.72]
[1728369071964,3.4904,143.29,143.26,10.72]
[1728369072166,1.3381,143.3,143.26,10.72]
[1728369073369,1.3381,143.3,143.25,10.72]
[1728369073370,3.4906,143.28,143.25,10.72]
[1728369075576,3.4906,143.28,143.25,14.2112]
[1728369078168,0.12502,143.33,143.27,10.72]
[1728369078364,0.12502,143.33,143.3,10.72]
[1728369079267,3.4895,143.32,143.3,10.72]
[1728369079765,0.12502,143.33,143.3,10.72]
[1728369079972,3.4898,143.31,143.3,10.72]
[1728369080377,3.4898,143.31,143.29,10.72]
[1728369080676,3.4898,143.31,143.27,8.4906]
[1728369080677,5.12518,143.4,143.3,15.72]
[1728369080869,10.72,143.38,143.33,10.72]
[1728369081064,3.489,143.34,143.33,10.72]
[1728369081272,2.86772,143.39,143.33,10.72]
[1728369081468,13.58772,143.39,143.34,10.72]
[1728369081675,3.489,143.35,143.34,10.72]
[1728369081876,13.58772,143.39,143.34,10.72]
[1728369082267,2.86772,143.39,143.34,10.72]
[1728369082775,0.12502,143.39,143.38,10.72]
[1728369085281,0.12502,143.39,143.38,14.2081]
[1728369085471,0.12518,143.4,143.38,10.72]
[1728369085667,0.12518,143.4,143.39,15.74]
[1728369085871,0.12518,143.4,143.34,93.77000348]
[1728369086072,0.12518,143.4,143.36,10.72]
[1728369086368,0.12518,143.4,143.37,10.72]
[1728369086574,3.488,143.39,143.38,10.72]
[1728369086778,3.488,143.39,143.35,5.02]
[1728369086779,0.12518,143.4,143.37,10.72]
[1728369087677,3.4881,143.38,143.37,10.72]
[1728369089179,0.12518,143.4,143.33,0.12502]
[1728369089385,10.72,143.39,143.34,10.72]
[1728369089780,3.4887,143.36,143.34,10.72]
[1728369090987,3.4888,143.35,143.34,10.72]
[1728369091185,1.42,143.38,143.33,10.84502]
[1728369091386,1.42,143.38,143.34,10.72]
[1728369092283,3.489,143.34,143.33,10.84502]
[1728369092980,3.4887,143.36,143.33,10.84502]
[1728369093184,3.4887,143.36,143.35,10.72]
[1728369093383,17.14,143.38,143.34,10.72]
[1728369093775,3.4889,143.35,143.34,10.72]
[1728369094180,6.42,143.38,143.34,10.72]
[1728369094491,3.4886,143.36,143.35,10.72]
[1728369095184,3.4888,143.35,143.33,0.12502]
[1728369095488,3.4888,143.35,143.34,10.72]
[1728369096783,3.489,143.34,143.33,10.84502]
[1728369096980,3.489,143.34,143.33,0.12502]
[1728369098690,3.4899,143.31,143.3,10.72]
[1728369099885,10.72,143.34,143.27,0.12502]
[1728369100087,10.72,143.32,143.27,0.12502]
[1728369100288,1.3082,143.31,143.27,10.84502]
[1728369100591,1.3082,143.31,143.28,10.72]
[1728369100888,4.7981,143.31,143.3,10.72]
[1728369101388,3.4899,143.31,143.3,10.72]
[1728369110594,3.4893,143.33,143.3,10.72]
[1728369110795,3.4893,143.33,143.32,10.72]
[1728369117406,17.1814,143.36,143.31,10.72]
[1728369117705,3.4896,143.32,143.31,10.72]
[1728369118096,3.4896,143.32,143.27,8.63562]
[1728369118303,10.72,143.34,143.27,8.63562]
[1728369118499,10.72,143.34,143.27,5.14502]
[1728369118809,10.72,143.34,143.29,10.72]
[1728369119007,3.4901,143.3,143.29,10.72]
[1728369119211,5.02,143.33,143.3,10.72]
[1728369119510,15.74,143.33,143.27,5.14502]
[1728369119702,15.74,143.33,143.28,10.72]
[1728369119900,5.02,143.33,143.3,10.72]
[1728369120096,3.4897,143.32,143.3,10.72]
[1728369120299,5.02,143.33,143.31,10.72]
[1728369121311,5.02,143.33,143.3,10.72]
[1728369121898,3.4898,143.31,143.3,10.72]
[1728369122507,3.4897,143.32,143.3,10.72]
[1728369124509,3.4897,143.32,143.31,10.72]
[1728369124707,5.02,143.35,143.31,10.72]
[1728369125007,6.4614,143.36,143.32,10.72]
[1728369125212,6.4614,143.36,143.34,10.72]
[1728369126512,3.489,143.35,143.34,10.72]
[1728369126718,6.4614,143.36,143.32,10.72]
[1728369127514,3.4891,143.34,143.32,10.72]
[1728369128613,3.4891,143.34,143.29,5.02]
[1728369128614,3.4889,143.35,143.33,10.72]
[1728369128811,1.4414,143.36,143.33,10.72]
[1728369129612,4.9301,143.36,143.33,10.72]
[1728369130215,3.4887,143.36,143.35,10.72]
[1728369130410,1.3837,143.38,143.35,10.72]
[1728369130715,0.12502,143.39,143.37,10.72]
[1728369131018,3.61292,143.39,143.37,10.72]
[1728369131520,0.12502,143.39,143.37,10.72]
[1728369131726,0.12502,143.39,143.38,10.72]
[1728369133423,3.61282,143.39,143.38,10.72]
[1728369133923,0.12502,143.39,143.38,10.72]
[1728369134625,0.12502,143.39,143.38,14.2081]
[1728369135332,0.12502,143.39,143.38,19.2281]
[1728369136433,0.12518,143.4,143.39,3.4878]
[1728369136628,0.12518,143.4,143.39,14.2078]
[1728369138136,3.4867,143.44,143.41,3.4871]
[1728369138434,3.4867,143.44,143.42,10.72]
[1728369139832,0.12502,143.45,143.42,10.72]
[1728369140738,3.61152,143.45,143.43,10.72]
[1728369141933,3.487,143.43,143.41,10.72]
[1728369143430,0.12502,143.45,143.41,10.72]
[1728369143632,3.4871,143.42,143.41,10.72]
[1728369147942,10.84502,143.45,143.4,10.72]
[1728369148235,10.72,143.43,143.38,10.72]
[1728369148744,3.4877,143.4,143.38,10.72]
[1728369148937,15.84502,143.45,143.39,10.72]
[1728369149130,3.4866,143.44,143.41,10.72]
[1728369149334,5.12502,143.45,143.42,10.72]
[1728369149838,3.4866,143.44,143.42,10.72]
[1728369150038,5.12502,143.45,143.42,10.72]
[1728369150240,3.4866,143.44,143.42,10.72]
[1728369150444,5.12502,143.45,143.42,10.72]
[1728369150946,3.4868,143.44,143.42,10.72]
[1728369151342,3.4866,143.44,143.42,10.72]
[1728369152142,3.4868,143.43,143.42,10.72]
[1728369152349,5.12502,143.45,143.42,10.72]
[1728369152744,3.4867,143.44,143.42,10.72]
[1728369155145,3.4868,143.43,143.42,10.72]
[1728369159152,3.4867,143.44,143.42,10.72]
[1728369159342,0.12502,143.45,143.44,10.72]
[1728369159850,0.12502,143.45,143.44,14.2066]
[1728369160360,140.11780116,143.49,143.45,3.4862]
[1728369160652,136.63240116,143.49,143.47,10.72]
[1728369161249,136.63240116,143.49,143.46,10.72]
[1728369161751,3.4856,143.48,143.46,10.72]
[1728369162146,3.4856,143.48,143.43,3.40463134]
[1728369162147,0.12502,143.51,143.47,10.72]
[1728369162452,3.4852,143.5,143.47,10.72]
[1728369162650,10.84502,143.51,143.47,10.72]
[1728369163052,3.4856,143.48,143.47,10.72]
[1728369163350,10.72,143.5,143.46,10.72]
[1728369163745,3.4859,143.48,143.46,10.72]
[1728369164354,3.4855,143.49,143.47,10.72]
[1728369165258,3.4856,143.48,143.47,10.72]
[1728369172364,3.4859,143.48,143.46,10.72]
[1728369172557,0.12502,143.51,143.46,10.72]
[1728369172870,3.4853,143.5,143.46,10.72]
[1728369173169,0.12502,143.51,143.46,10.72]
[1728369173376,3.4852,143.5,143.47,10.72]
[1728369173667,0.12502,143.51,143.47,10.72]
[1728369174262,3.4856,143.48,143.47,10.72]
[1728369174769,0.12502,143.51,143.47,10.72]
[1728369174968,0.12502,143.51,143.48,10.72]
[1728369175267,0.12502,143.51,143.5,10.72]
[1728369175568,3.61002,143.51,143.5,10.72]
[1728369175961,0.12502,143.51,143.5,10.72]
[1728369176567,0.12502,143.51,143.5,14.2051]
[1728369179167,2.87492,143.57,143.5,10.72]
[1728369179372,2.87492,143.57,143.55,10.72]
[1728369179569,3.4838,143.56,143.55,10.72]
[1728369180077,2.87492,143.57,143.55,10.72]
[1728369180375,2.87492,143.57,143.51,3.43378766]
[1728369180376,1.51192,143.57,143.56,10.72]
[1728369180572,0.12502,143.57,143.56,10.72]
[1728369180776,0.12502,143.57,143.56,14.2037]
[1728369180970,4.1676,143.62,143.56,10.72]
[1728369181173,4.1676,143.62,143.61,10.72]
[1728369181373,2.8112,143.62,143.61,10.72]
[1728369181573,1.37,143.62,143.61,10.72]
[1728369182172,1.37,143.62,143.59,10.72]
[1728369182367,1.37,143.62,143.57,10.72]
[1728369182564,3.4831,143.59,143.57,10.72]
[1728369183169,14.2026,143.61,143.54,3.4841]
[1728369183469,14.2026,143.61,143.52,2.2634]
[1728369183470,10.72,143.61,143.57,10.72]
[1728369183673,3.4831,143.59,143.57,10.72]
[1728369185076,10.72,143.61,143.57,10.72]
[1728369185281,3.4827,143.61,143.59,10.72]
[1728369185474,0.12502,143.63,143.6,10.72]
[1728369185673,0.12502,143.63,143.62,10.72]
[1728369186369,3.60702,143.63,143.62,10.72]
[1728369187085,3.4823,143.62,143.61,10.72]
[1728369187575,0.12502,143.63,143.56,3.4835]
[1728369187777,10.84502,143.63,143.58,10.72]
[1728369188167,3.4827,143.61,143.56,3.4835]
[1728369188372,3.4827,143.61,143.59,10.72]
[1728369188572,0.12502,143.63,143.59,10.72]
[1728369188777,3.4826,143.61,143.59,10.72]
[1728369189382,3.4826,143.61,143.6,10.72]
[1728369190077,3.4826,143.61,143.56,3.4835]
[1728369190279,3.4826,143.61,143.6,10.72]
[1728369191189,3.4826,143.61,143.52,5.32924228]
[1728369191190,3.4827,143.6,143.59,10.72]
[1728369192891,10.72,143.61,143.57,10.72]
[1728369193081,1.4373,143.6,143.56,10.72]
[1728369193282,12.1573,143.6,143.55,10.72]
[1728369193787,3.4839,143.56,143.55,10.72]
[1728369194488,10.72,143.57,143.52,10.72]
[1728369195181,10.72,143.56,143.52,10.72]
[1728369195376,3.484,143.55,143.52,10.72]
[1728369195577,10.72,143.57,143.52,10.72]
[1728369195785,10.72,143.58,143.54,10.72]
[1728369196390,3.4841,143.55,143.54,10.72]
[1728369196686,10.72,143.64,143.55,10.72]
[1728369196883,3.4828,143.6,143.59,10.72]
[1728369198788,3.4831,143.59,143.58,10.72]
[1728369205386,10.84502,143.63,143.51,0.12502]
[1728369205387,10.72,143.61,143.51,0.12502]
[1728369205592,10.72,143.59,143.55,10.72]
[1728369205793,10.72,143.59,143.54,10.72]
[1728369206101,10.72,143.56,143.52,10.72]
[1728369207187,3.4844,143.53,143.52,10.72]
[1728369207392,10.72,143.57,143.52,10.72]
[1728369207592,1.3739,143.58,143.54,10.72]
[1728369207793,3.4841,143.55,143.54,10.72]
[1728369209804,10.72,143.57,143.52,10.72]
[1728369210002,3.4843,143.54,143.52,10.72]
[1728369210199,10.72,143.57,143.52,10.72]
[1728369210407,3.4846,143.53,143.51,10.84502]
[1728369211305,1.3739,143.58,143.52,10.72]
[1728369211506,2.6702,143.6,143.55,10.72]
[1728369211898,3.4831,143.59,143.55,10.72]
[1728369212097,2.6702,143.6,143.55,10.72]
[1728369212411,3.4836,143.57,143.55,10.72]
[1728369212595,2.6702,143.6,143.55,10.72]
[1728369212801,13.3902,143.6,143.55,10.72]
[1728369213805,3.4836,143.57,143.55,10.72]
[1728369214101,2.6702,143.6,143.55,10.72]
[1728369214308,2.6702,143.6,143.58,10.72]
[1728369214503,1.3356,143.6,143.58,10.72]
[1728369214706,1.3539,143.62,143.59,10.72]
[1728369215305,3.4825,143.61,143.59,10.72]
[1728369216107,1.3539,143.62,143.59,10.72]
[1728369216306,1.3539,143.62,143.58,10.72]
[1728369216607,1.3539,143.62,143.56,16.72]
[1728369216905,0.12502,143.63,143.58,16.72]
[1728369217407,3.4827,143.61,143.58,16.72]
[1728369220405,3.4828,143.6,143.58,16.72]
[1728369221204,3.4831,143.59,143.56,16.72]
[1728369221602,0.12502,143.63,143.56,16.72]
[1728369221809,3.4831,143.59,143.56,16.72]
[1728369222310,0.12502,143.63,143.56,16.72]
[1728369222507,3.4829,143.6,143.56,23.70023175]
[1728369222710,3.4829,143.6,143.56,20.2035]
[1728369223111,3.4829,143.6,143.56,20.2808089]
[1728369223409,3.4829,143.6,143.57,3.4834]
[1728369223613,0.12502,143.63,143.57,16.72]
[1728369223801,0.12502,143.63,143.56,3.5608089]
[1728369223802,0.12502,143.63,143.59,16.72]
[1728369224315,3.4824,143.62,143.59,16.72]
[1728369225210,0.12502,143.63,143.59,16.72]
[1728369225415,3.60712,143.63,143.59,20.2027]
[1728369229410,0.12502,143.63,143.61,16.72]
[1728369229612,0.12502,143.63,143.62,3.4822]
[1728369229812,3.4811,143.67,143.61,16.72]
[1728369230113,3.4811,143.67,143.64,16.72]
[1728369232413,3.4814,143.66,143.62,20.2021]
[1728369232814,0.12502,143.69,143.62,16.72]
[1728369233020,16.84502,143.69,143.6,16.72]
[1728369234117,16.84502,143.69,143.6,20.2027]
[1728369235823,3.4819,143.64,143.6,20.2027]
[1728369237723,3.482,143.63,143.6,20.2027]
[1728369238430,0.12502,143.69,143.62,16.72]
[1728369240024,3.4817,143.65,143.62,16.72]
[1728369240424,0.12502,143.69,143.58,1.8149]
[1728369240631,0.12502,143.69,143.6,20.2026]
[1728369241230,3.4819,143.64,143.6,20.2026]
[1728369242425,10.7,143.64,143.6,10.7]
[1728369242924,3.4823,143.62,143.58,4.8307]
[1728369243127,10.82502,143.69,143.62,10.7]
[1728369243325,10.82502,143.69,143.64,10.7]
[1728369243631,3.4814,143.66,143.64,10.7]
[1728369244525,3.4814,143.66,143.63,16.7]
[1728369246431,3.4815,143.65,143.63,16.7]
[1728369246736,16.7,143.68,143.59,16.7]
[1728369247223,0.12502,143.69,143.58,4.8308]
[1728369247224,16.7,143.66,143.58,4.8308]
[1728369247426,1.3639,143.65,143.58,1.3477]
[1728369247630,3.4825,143.61,143.57,16.82502]
[1728369247926,1.3639,143.65,143.57,16.82502]
[1728369248126,3.4824,143.62,143.57,16.82502]
[1728369248632,3.4824,143.62,143.58,3.483]
[1728369249733,3.4825,143.61,143.58,3.483]
[1728369249934,3.4825,143.61,143.57,16.82502]
[1728369250130,3.4825,143.61,143.57,20.30832]
[1728369250428,16.7,143.62,143.57,0.12502]
[1728369250639,16.7,143.6,143.57,0.12502]
[1728369251027,4.82621981,143.61,143.57,0.12502]
[1728369251227,1.3088,143.61,143.57,0.12502]
[1728369251539,3.4821,143.63,143.57,16.82502]
[1728369251723,1.3639,143.65,143.57,16.82502]
[1728369252034,1.3639,143.65,143.61,16.7]
[1728369252430,1.3639,143.65,143.61,20.1825]
[1728369252939,4.8456,143.65,143.61,16.7]
[1728369254038,3.4813,143.66,143.61,16.7]
[1728369254336,0.12502,143.69,143.61,16.7]
[1728369254644,3.4808,143.68,143.63,16.7]
[1728369255040,3.4808,143.68,143.64,3.4817]
[1728369257336,3.4808,143.68,143.63,20.1819]
[1728369258035,3.4808,143.68,143.64,3.4817]
[1728369259236,3.60562,143.69,143.65,3.4815]
[1728369259546,0.12502,143.69,143.65,16.7]
[1728369260044,0.12502,143.69,143.65,20.1814]
[1728369260240,0.12502,143.69,143.65,16.7]
[1728369260432,0.12502,143.69,143.67,16.7]
[1728369261336,0.12502,143.69,143.65,20.23769727]
[1728369261540,0.12502,143.69,143.67,16.7]
[1728369261743,0.12502,143.69,143.67,20.1809]
[1728369265037,0.12502,143.69,143.67,16.7]
[1728369265239,3.4808,143.68,143.67,16.7]
[1728369265737,0.12502,143.69,143.63,16.7]
[1728369265945,0.12502,143.69,143.61,16.7]
[1728369266335,3.4812,143.67,143.64,3.4817]
[1728369266534,0.12502,143.69,143.61,16.7]
[1728369267049,3.4814,143.66,143.63,3.4819]
[1728369269139,3.4815,143.65,143.62,3.4821]
[1728369269544,3.4814,143.66,143.63,3.4819]
[1728369269744,0.12502,143.69,143.61,16.7]
[1728369270045,3.481,143.68,143.63,20.1818]
[1728369270344,0.12502,143.69,143.64,16.7]
[1728369270534,0.12502,143.69,143.66,20.1811]
[1728369270535,3.60562,143.69,143.66,20.1811]
[1728369270736,3.60562,143.69,143.66,16.7]
[1728369270737,0.12502,143.69,143.66,16.7]
[1728369271442,3.60562,143.69,143.66,20.1811]
[1728369272444,0.12502,143.69,143.68,20.1808]
[1728369277943,3.4798,143.72,143.69,3.4805]
[1728369279053,3.4801,143.71,143.68,16.7]
[1728369279352,0.12502,143.75,143.68,16.7]
[1728369279753,3.4803,143.7,143.68,16.7]
[1728369279954,0.12502,143.75,143.68,16.7]
[1728369280252,3.4796,143.73,143.68,16.7]
[1728369280456,0.12502,143.75,143.68,16.7]
[1728369280751,0.12502,143.75,143.66,16.7]
[1728369280752,16.82502,143.75,143.66,16.7]
[1728369280950,16.82502,143.75,143.64,18.0023]
[1728369281147,16.82502,143.75,143.64,21.40727303]
[1728369281352,16.82502,143.75,143.64,21.484]
[1728369281951,16.7,143.73,143.64,18.0023]
[1728369282265,1.3396,143.72,143.64,18.0023]
[1728369282651,1.3396,143.72,143.64,20.1817]
[1728369282652,3.4809,143.68,143.64,20.1817]
[1728369283456,3.4811,143.67,143.64,16.7]
[1728369284148,2.7039,143.71,143.64,16.7]
[1728369284957,3.4812,143.67,143.64,16.7]
[1728369285153,3.4812,143.67,143.64,20.1817]
[1728369286465,3.4816,143.65,143.63,0.12502]
[1728369286759,19.4039,143.71,143.63,0.12502]
[1728369286760,16.7,143.67,143.63,0.12502]
[1728369287064,16.7,143.65,143.57,20.30842]
[1728369287254,1.3592,143.64,143.57,16.82502]
[1728369287456,3.483,143.59,143.57,0.12502]
[1728369288551,3.4828,143.6,143.57,3.60842]
[1728369289963,3.4825,143.61,143.58,3.4832]
[1728369290565,3.4823,143.62,143.57,20.30832]
[1728369290762,2.7714,143.64,143.57,20.30832]
[1728369291565,3.4826,143.61,143.57,20.30832]
[1728369291865,2.7714,143.64,143.57,20.30832]
[1728369292164,3.4828,143.6,143.57,16.82502]
[1728369292963,3.483,143.59,143.57,0.12502]
[1728369293363,16.7,143.63,143.57,0.12502]
[1728369293764,3.4832,143.58,143.57,0.12502]
[1728369295068,3.4823,143.62,143.57,0.12502]
[1728369295268,2.7714,143.64,143.57,0.12502]
[1728369296260,3.4831,143.59,143.57,0.12502]
[1728369299874,3.4831,143.59,143.57,16.82502]
[1728369301270,3.4831,143.59,143.57,20.30842]
[1728369301768,2.7714,143.64,143.57,16.82502]
[1728369301972,2.7714,143.64,143.58,3.4832]
[1728369302172,3.4826,143.61,143.58,3.4832]
[1728369302475,3.4826,143.61,143.59,10.7]
[1728369302767,13.4714,143.64,143.59,14.1829]
[1728369302969,3.4824,143.62,143.6,10.7]
[1728369303170,2.7714,143.64,143.61,10.7]
[1728369303367,1.3592,143.64,143.62,10.7]
[1728369304162,4.841,143.64,143.62,10.7]
[1728369304372,1.3653,143.68,143.63,16.7]
[1728369304675,3.4814,143.66,143.63,16.7]
[1728369304876,2.7554,143.68,143.63,16.7]
[1728369305280,3.4812,143.67,143.64,3.4817]
[1728369305471,1.3901,143.68,143.63,16.7]
[1728369305870,4.871,143.68,143.64,3.4817]
[1728369306781,3.481,143.67,143.64,3.4817]
[1728369309382,4.871,143.68,143.65,3.4815]
[1728369310487,1.3044,143.71,143.66,16.7]
[1728369310782,3.4804,143.7,143.67,3.481]
[1728369315691,1.386,143.73,143.65,3.478669]
[1728369315893,1.386,143.73,143.68,20.1808]
[1728369316091,1.386,143.73,143.68,23.71954135]
[1728369316296,4.8657,143.73,143.68,23.71954135]
[1728369317598,3.4787,143.77,143.68,20.23874135]
[1728369317800,3.4787,143.77,143.72,16.7]
[1728369317999,1.4443,143.8,143.74,16.7]
[1728369318293,3.4785,143.78,143.74,20.1793]
[1728369318503,3.60012022,143.81,143.72,16.7]
[1728369319394,3.4786,143.77,143.73,3.4794]
[1728369319794,3.60012022,143.81,143.73,3.4794]
[1728369320106,3.4786,143.77,143.73,3.4794]
[1728369321095,3.4786,143.77,143.72,16.7]
[1728369321298,3.4786,143.77,143.74,3.4793]
[1728369322392,3.4786,143.77,143.74,20.1793]
[1728369322793,1.3131,143.8,143.74,16.7]
[1728369322995,1.3131,143.8,143.72,16.7]
[1728369323395,18.0131,143.8,143.72,16.7]
[1728369324496,3.4794,143.74,143.72,16.7]
[1728369324894,18.0131,143.8,143.7,16.7]
[1728369325105,3.4797,143.73,143.7,16.7]
[1728369325997,3.4797,143.73,143.7,20.1803]
[1728369326800,3.60412,143.75,143.72,20.1798]
[1728369327001,0.12502,143.81,143.74,33.4]
[1728369327305,3.4779,143.8,143.78,16.7]
[1728369327491,0.12502,143.81,143.76,16.7]
[1728369327998,3.4779,143.8,143.77,3.4785]
[1728369328198,0.12502,143.81,143.77,3.4785]
[1728369328389,0.12502,143.81,143.76,16.7]
[1728369328593,3.478,143.8,143.76,20.1788]
[1728369328905,0.12502,143.81,143.76,16.7]
[1728369329207,3.4781,143.79,143.76,16.7]
[1728369329503,0.12502,143.81,143.76,16.7]
[1728369329900,3.478,143.8,143.76,16.7]
[1728369330104,0.12502,143.81,143.76,16.7]
[1728369330502,3.60282,143.81,143.77,3.4786]
[1728369330705,3.60282,143.81,143.76,16.7]
[1728369330706,0.12502,143.81,143.76,16.7]
[1728369331699,3.60272,143.81,143.78,20.1781]
[1728369331911,0.12502,143.81,143.78,16.7]
[1728369332295,0.12502,143.81,143.78,20.1781]
[1728369332501,0.12502,143.81,143.78,16.7]
[1728369333399,0.12502,143.81,143.8,16.7]
[1728369333797,3.4767,143.85,143.8,16.7]
[1728369334004,0.12502,143.87,143.8,16.7]
[1728369334208,0.12502,143.87,143.82,16.7]
[1728369334508,0.12502,143.87,143.83,3.4769]
[1728369334509,3.60132,143.87,143.83,3.4769]
[1728369335405,0.12502,143.87,143.84,20.1768]
[1728369335705,0.12502,143.87,143.84,16.7]
[1728369335902,0.12502,143.87,143.84,20.1767]
[1728369336708,0.12502,143.87,143.84,16.7]
[1728369338104,0.12502,143.87,143.82,16.7]
[1728369338406,3.4766,143.86,143.82,20.1772]
[1728369338602,0.12502,143.87,143.82,16.7]
[1728369339197,0.12502,143.87,143.8,16.7]
[1728369339505,0.12502,143.87,143.78,20.1781]
[1728369339506,3.4773,143.83,143.78,20.1781]
[1728369340406,3.4773,143.83,143.78,16.7]
[1728369340802,3.4773,143.83,143.79,3.4779]
[1728369341804,3.4773,143.83,143.8,16.7]
[1728369342005,3.4773,143.83,143.8,20.1777]